bitfinex/quotes_SOLUSD_20260213
["timestamp","ask_amount","ask_price","bid_price","bid_amount"]
[1771022634257,0.2,84.73,84.71,3.85709594]
[1771022634450,0.2,84.73,84.711,1.01643381]
[1771022640265,0.2,84.73,84.7,17.61643381]
[1771022640266,0.02750884,84.729,84.7,17.61643381]
[1771022640567,0.02750884,84.728,84.695,1.01643381]
[1771022642648,0.02750884,84.728,84.677,16.62]
[1771022642649,0.02750884,84.728,84.678,1.01643381]
[1771022642851,0.02814264,84.719,84.678,1.01643381]
[1771022643766,11.80372761,84.719,84.678,1.01643381]
[1771022643964,0.02835685,84.718,84.678,1.01643381]
[1771022646362,0.02897677,84.709,84.661,1.01643381]
[1771022647051,53.10897677,84.709,84.661,1.01643381]
[1771022647254,0.0291861,84.708,84.661,1.01643381]
[1771022647454,0.0291861,84.707,84.661,1.01643381]
[1771022652679,0.03017114,84.706,84.661,1.01643381]
[1771022655162,0.03074016,84.716,84.661,1.01643381]
[1771022655373,0.03074016,84.714,84.661,1.01643381]
[1771022655577,53.14,84.713,84.661,1.01643381]
[1771022655778,0.03074016,84.712,84.661,1.01643381]
[1771022656776,0.03074016,84.712,84.671,1.01643381]
[1771022659483,0.03145965,84.717,84.671,1.01643381]
[1771022661688,0.03145965,84.717,84.652,61.9]
[1771022661689,0.03145965,84.717,84.681,1.01643381]
[1771022663084,0.03213804,84.728,84.681,1.01643381]
[1771022691091,0.03213804,84.728,84.681,12.82532349]
[1771022691291,0.03213804,84.728,84.682,1.01643381]
[1771022691491,11.8023345,84.729,84.691,1.01643381]
[1771022691915,0.2,84.73,84.691,1.01643381]
[1771022695510,11.8023345,84.729,84.691,1.01643381]
[1771022695706,11.8023345,84.729,84.671,1.01643381]
[1771022695707,3.86044646,84.71,84.671,1.01643381]
[1771022696501,3.86044646,84.7,84.671,1.01643381]
[1771022696719,11.80512106,84.709,84.671,1.01643381]
[1771022697816,41.31792371,84.709,84.671,1.01643381]
[1771022707017,3.86044646,84.7,84.671,1.01643381]
[1771022709132,11.80651483,84.699,84.671,1.01643381]
[1771022711716,3.86075865,84.7,84.671,1.01643381]
[1771022712832,11.80651483,84.699,84.671,1.01643381]
[1771022714428,11.80651483,84.699,84.315,157.1221297]
[1771022714429,3.86075865,84.69,84.661,1.01643381]
[1771022714812,3.86075865,84.68,84.655,1.01643381]
[1771022715038,3.86075865,84.68,84.63,15.67687229]
[1771022715215,3.86075865,84.66,84.621,1.01643381]
[1771022717814,3.86075865,84.67,84.621,1.01643381]
[1771022719137,11.81069813,84.669,84.621,1.01643381]
[1771022723632,41.33744345,84.669,84.621,1.01643381]
[1771022729933,11.81069813,84.669,84.621,1.01643381]
[1771022730240,61.44345892,84.679,84.62,3.96075865]
[1771022730241,11.80944283,84.678,84.64,3.86075865]
[1771022730450,11.80790893,84.689,84.641,1.01643381]
[1771022730641,11.80790893,84.689,84.651,1.01643381]
[1771022731446,11.80738022,84.693,84.651,1.01643381]
[1771022734042,11.80680731,84.697,84.651,1.01643381]
[1771022736546,11.80680731,84.697,84.65,3.86075865]
[1771022736547,11.80534911,84.708,84.653,1.01643381]
[1771022737142,11.80448709,84.714,84.671,1.01643381]
[1771022737542,11.80386974,84.718,84.671,1.01643381]
[1771022740767,11.80169788,84.734,84.691,1.01643381]
[1771022746262,11.80105569,84.739,84.691,1.01643381]
[1771022747071,4.06075865,84.74,84.701,1.01643381]
[1771022747072,0.2,84.74,84.701,1.01643381]
[1771022750549,0.2,84.74,84.711,0.92475265]
[1771022758477,0.2,84.74,84.713,0.92475265]
[1771022759986,0.2,84.74,84.721,0.92475265]
[1771022761583,0.2,84.75,84.722,0.85414691]
[1771022763478,0.2,84.75,84.724,0.85414691]
[1771022766590,0.21327673,84.749,84.724,0.85414691]
[1771022766769,0.2,84.75,84.724,0.85414691]
[1771022774595,0.1901723,84.749,84.724,0.85414691]
[1771022778805,0.2,84.76,84.741,0.85414691]
[1771022779098,0.2,84.76,84.74,3.85460154]
[1771022779099,0.2,84.76,84.743,0.85414691]
[1771022779496,0.1,84.77,84.743,0.85414691]
[1771022780076,0.27678929,84.77,84.743,0.85414691]
[1771022780788,0.27678929,84.77,84.745,0.85414691]
[1771022782609,0.16910812,84.769,84.745,0.85414691]
[1771022788205,0.1545115,84.767,84.726,0.85414691]
[1771022788397,0.55451151,84.749,84.706,16.9]
[1771022790308,3.85460154,84.75,84.707,0.85414691]
[1771022790309,0.55048412,84.747,84.707,0.85414691]
[1771022792516,0.54461002,84.745,84.707,0.85414691]
[1771022792685,0.54461002,84.739,84.696,0.84302767]
[1771022792885,41.29988436,84.746,84.681,0.84302767]
[1771022792886,0.54461002,84.729,84.681,0.84302767]
[1771022793503,0.54269804,84.719,84.681,0.84302767]
[1771022793690,0.54269804,84.719,84.677,0.84302767]
[1771022794491,0.54080931,84.717,84.677,0.84302767]
[1771022797699,0.53346546,84.715,84.677,0.84302767]
[1771022798998,0.531682,84.713,84.677,0.84302767]
[1771022801615,3.85460154,84.73,84.681,0.83830913]
[1771022801802,0.52645072,84.729,84.69,3.85460154]
[1771022802113,0.52645072,84.729,84.682,16.9]
[1771022802114,0.52645072,84.729,84.701,0.83830913]
[1771022803518,0.52307494,84.743,84.701,0.83830913]
[1771022806316,0.51814942,84.739,84.685,4.61729252]
[1771022806524,0.51814942,84.729,84.696,0.83830913]
[1771022813620,0.51814942,84.729,84.701,0.83830913]
[1771022817114,0.51814942,84.729,84.691,0.83830913]
[1771022817533,0.501469,84.719,84.683,0.83830913]
[1771022818036,0.501469,84.717,84.683,0.83830913]
[1771022819035,11.80414561,84.716,84.683,0.83830913]
[1771022819333,0.49864756,84.715,84.683,0.83830913]
[1771022821630,0.49454207,84.713,84.683,0.83830913]
[1771022821933,0.49454207,84.709,84.683,0.83830913]
[1771022825532,0.48928474,84.707,84.666,0.78534024]
[1771022828639,0.48928474,84.707,84.668,0.78534024]
[1771022833337,0.47948952,84.705,84.668,0.78534024]
[1771022837739,0.47948952,84.705,84.67,0.78534024]
[1771022838736,0.47948952,84.705,84.671,0.78534024]
[1771022844333,0.46746464,84.711,84.672,0.78534024]
[1771022844533,0.46746464,84.719,84.681,0.78534024]
[1771022844755,0.46746464,84.719,84.683,0.78534024]
[1771022855667,0.45510618,84.717,84.683,0.78534024]
[1771022858747,0.45105297,84.715,84.683,0.78534024]
[1771022859158,0.45006619,84.709,84.683,0.78534024]
[1771022859349,0.45006619,84.709,84.678,0.80911782]
[1771022859555,0.45006619,84.709,84.667,0.80911782]
[1771022860466,0.44909301,84.699,84.667,0.80911782]
[1771022864459,0.44529725,84.689,84.66,0.80911782]
[1771022867453,12.25333601,84.689,84.66,0.80911782]
[1771022867662,0.44255955,84.688,84.66,0.80911782]
[1771022867953,0.44255955,84.688,84.659,17.48]
[1771022868154,0.44255955,84.688,84.66,0.80911782]
[1771022869861,0.44078886,84.686,84.66,0.80911782]
[1771022871985,3.85977877,84.68,84.66,0.80911782]
[1771022872287,0.43906501,84.679,84.66,0.80911782]
[1771022875293,0.43572396,84.677,84.66,0.80911782]
[1771022879184,0.43572396,84.677,84.641,0.80911782]
[1771022880194,0.43176676,84.675,84.641,0.80911782]
[1771022881485,11.8100007,84.674,84.641,0.80911782]
[1771022881681,0.43025279,84.673,84.641,0.80911782]
[1771022883194,0.42877663,84.669,84.634,0.81888815]
[1771022883380,0.42877663,84.659,84.634,0.81888815]
[1771022895404,0.42058023,84.668,84.634,0.81888815]
[1771022896392,0.41994615,84.673,84.641,0.81888815]
[1771022896702,0.41994615,84.678,84.641,0.81888815]
[1771022897611,0.41931505,84.684,84.641,0.81888815]
[1771022898713,0.41869248,84.683,84.641,0.81888815]
[1771022902114,0.41869248,84.683,84.642,0.81888815]
[1771022903194,0.41568517,84.681,84.642,0.81888815]
[1771022905109,0.41510481,84.679,84.642,0.81888815]
[1771022905315,0.41453192,84.677,84.642,0.81888815]
[1771022905894,0.41453192,84.669,84.634,0.81888815]
[1771022907518,11.81083762,84.668,84.634,0.81888815]
[1771022907719,0.41341063,84.667,84.634,0.81888815]
[1771022909723,0.41231577,84.665,84.634,0.81888815]
[1771022911025,0.41109418,84.663,84.634,0.81888815]
[1771022913118,3.8639253,84.67,84.634,0.81888815]
[1771022913119,0.40975058,84.661,84.634,0.81888815]
[1771022913545,0.40975058,84.661,84.63,0.1]
[1771022913546,0.40909359,84.659,84.63,0.1]
[1771022914102,0.40909359,84.659,84.63,0.8489645]
[1771022915323,0.40779907,84.657,84.63,0.8489645]
[1771022921235,0.40349397,84.661,84.63,0.8489645]
[1771022921421,0.40349397,84.669,84.63,0.8489645]
[1771022921615,4.26741927,84.67,84.63,0.8489645]
[1771022921928,0.40349397,84.669,84.63,0.8489645]
[1771022925320,0.40120416,84.695,84.631,0.79367546]
[1771022925515,6.17050438,84.696,84.631,0.79367546]
[1771022925516,0.40120416,84.689,84.631,0.79367546]
[1771022926339,0.40120416,84.689,84.633,0.79367546]
[1771022927340,0.40120416,84.689,84.63,45.32036997]
[1771022927341,0.40120416,84.689,84.636,0.79367546]
[1771022929135,0.40120416,84.689,84.638,0.79367546]
[1771022930136,0.40120416,84.689,84.639,11.81488439]
[1771022930446,0.40120416,84.689,84.64,0.79367546]
[1771022932643,11.80803369,84.689,84.64,0.79367546]
[1771022932843,0.39740381,84.688,84.64,0.79367546]
[1771022933730,0.39740381,84.688,84.642,0.79367546]
[1771022934343,0.39637397,84.687,84.642,0.79367546]
[1771022941768,0.39253486,84.685,84.642,0.79367546]
[1771022942057,0.39253486,84.679,84.642,0.79367546]
[1771022942362,0.39207649,84.677,84.642,0.79367546]
[1771022942539,0.39207649,84.659,84.631,0.75994047]
[1771022943652,0.39207649,84.659,84.63,0.1]
[1771022944158,0.39207649,84.659,84.63,0.85994047]
[1771022944355,3.8639253,84.65,84.63,0.1]
[1771022944547,0.39118049,84.649,84.63,0.1]
[1771022946163,0.39118049,84.649,84.631,0.75994047]
[1771022946735,0.39029169,84.659,84.631,0.75994047]
[1771022953070,0.38778864,84.649,84.631,0.75994047]
[1771022958366,0.38778864,84.649,84.631,0.61998917]
[1771022962885,0.38778864,84.649,84.62,0.83178124]
[1771022971971,0.42248194,84.647,84.62,0.83178124]
[1771022973599,0.42248194,84.647,84.62,0.08178124]
[1771022976687,0.75174589,84.676,84.621,0.80009346]
[1771022976876,0.75174589,84.676,84.631,0.80009346]
[1771022978292,11.80986123,84.675,84.631,0.80009346]
[1771022978597,0.7475749,84.674,84.631,0.80009346]
[1771022980396,11.81014018,84.673,84.631,0.80009346]
[1771022980694,0.7475749,84.672,84.631,0.80009346]
[1771022982577,0.7475749,84.67,84.631,0.80009346]
[1771022984694,0.7475749,84.669,84.631,0.80009346]
[1771022984999,0.7475749,84.668,84.631,0.80009346]
[1771022995699,0.7475749,84.67,84.631,0.80009346]
[1771022995904,0.7475749,84.674,84.631,0.80009346]
[1771022996207,0.7475749,84.683,84.633,0.80235472]
[1771022997798,11.808885,84.682,84.635,0.80235472]
[1771022998108,0.7475749,84.688,84.637,0.80235472]
[1771022998306,0.7475749,84.688,84.636,17.58]
[1771022998307,4.61249249,84.71,84.661,0.80235472]
[1771022998608,4.61249249,84.71,84.663,0.80235472]
[1771022998794,0.7475749,84.709,84.663,0.80235472]
[1771022999510,0.7475749,84.699,84.663,0.80235472]
[1771022999912,0.7475749,84.689,84.663,0.80235472]
[1771023000111,0.7475749,84.689,84.653,0.80235472]
[1771023000294,0.7475749,84.679,84.653,0.80235472]
[1771023000894,0.7475749,84.679,84.649,0.78075839]
[1771023001102,0.76050139,84.669,84.649,0.78075839]
[1771023001691,0.76050139,84.669,84.634,0.78075839]
[1771023009715,11.81083762,84.668,84.634,0.78075839]
[1771023009931,0.76050139,84.667,84.634,0.78075839]
[1771023010425,0.76050139,84.665,84.634,0.78075839]
[1771023013239,0.76050139,84.659,84.632,17.58]
[1771023014019,0.76050139,84.659,84.632,18.36075839]
[1771023014331,0.76050139,84.659,84.633,0.78075839]
[1771023023938,11.81223274,84.658,84.633,0.78075839]
[1771023024723,0.76050139,84.659,84.633,0.78075839]
[1771023027449,12.57273413,84.658,84.633,0.78075839]
[1771023027744,0.76050139,84.657,84.633,0.78075839]
[1771023028348,11.81223274,84.658,84.633,0.78075839]
[1771023028536,0.76050139,84.657,84.633,0.78075839]
[1771023032331,0.79547262,84.661,84.633,0.78075839]
[1771023033827,0.79547262,84.684,84.633,0.78075839]
[1771023035038,0.79547262,84.683,84.641,0.81116496]
[1771023035249,3.86438608,84.68,84.641,0.81116496]
[1771023035440,0.79547262,84.679,84.641,0.81116496]
[1771023036634,0.79547262,84.677,84.641,0.81116496]
[1771023038655,0.80873189,84.675,84.641,0.81116496]
[1771023044544,0.80873189,84.673,84.641,0.81116496]
[1771023044937,0.80873189,84.669,84.641,0.81116496]
[1771023060980,48.88,84.699,84.641,0.81116496]
[1771023060981,0.80873189,84.688,84.641,0.81116496]
[1771023061571,0.80873189,84.688,84.643,0.75159541]
[1771023064073,0.80873189,84.688,84.645,0.75159541]
[1771023064274,0.77535356,84.699,84.651,0.75159541]
[1771023065560,0.77535356,84.697,84.651,0.75159541]
[1771023068165,0.77535356,84.697,84.653,0.75159541]
[1771023076689,0.77535356,84.697,84.655,0.75159541]
[1771023082578,0.77535356,84.697,84.657,0.75159541]
[1771023088485,0.77535356,84.697,84.658,0.75159541]
[1771023097387,0.77535356,84.697,84.661,0.74809046]
[1771023097589,0.77535356,84.697,84.663,0.74809046]
[1771023120919,0.7523884,84.695,84.662,18.72]
[1771023121136,0.7523884,84.695,84.64,3.86058005]
[1771023121137,0.7523884,84.689,84.651,0.74563188]
[1771023123520,0.7523884,84.689,84.649,19.22]
[1771023123521,0.7523884,84.687,84.649,19.22]
[1771023124035,0.7523884,84.687,84.65,0.74563188]
[1771023127322,0.7523884,84.685,84.65,0.74563188]
[1771023127523,11.80832723,84.686,84.639,0.74563188]
[1771023127524,0.7523884,84.669,84.639,0.74563188]
[1771023133024,0.7523884,84.677,84.639,0.74563188]
[1771023136150,0.7523884,84.675,84.639,0.74563188]
[1771023138444,0.7523884,84.673,84.639,0.74563188]
[1771023141433,0.7523884,84.689,84.641,0.74563188]
[1771023142734,0.7523884,84.685,84.641,0.74563188]
[1771023144636,0.7523884,84.683,84.641,0.74563188]
[1771023151040,0.79290359,84.681,84.641,0.74563188]
[1771023151236,0.79290359,84.681,84.642,19.56]
[1771023151462,0.79290359,84.681,84.643,0.74187962]
[1771023154644,0.79290359,84.679,84.643,0.74187962]
[1771023162847,0.79290359,84.679,84.651,0.78711861]
[1771023163049,0.79290359,84.679,84.653,0.78711861]
[1771023167674,0.74950964,84.677,84.653,0.78711861]
[1771023171787,0.74950964,84.706,84.661,0.78711861]
[1771023171963,0.74950964,84.689,84.66,0.5]
[1771023172166,0.74950964,84.679,84.655,0.78711861]
[1771023172582,0.74950964,84.679,84.641,20.06]
[1771023172583,0.74950964,84.669,84.643,0.78711861]
[1771023175384,0.74950964,84.669,84.641,20.06]
[1771023175385,0.74950964,84.669,84.641,20.84711861]
[1771023176366,0.74950964,84.669,84.642,0.78711861]
[1771023177074,0.74950964,84.669,84.638,0.78711861]
[1771023182973,0.79702713,84.667,84.638,0.78711861]
[1771023183987,0.79702713,84.659,84.638,0.78711861]
[1771023185190,0.79702713,84.659,84.633,0.78221092]
[1771023185494,11.81111662,84.666,84.602,0.78221092]
[1771023185495,0.79702713,84.639,84.602,0.78221092]
[1771023187791,0.79702713,84.639,84.591,11.82158858]
[1771023187992,0.79702713,84.619,84.59,0.88221092]
[1771023190478,3.86241382,84.65,84.591,0.78221092]
[1771023190678,0.79702713,84.649,84.601,0.78221092]
[1771023192476,0.79702713,84.649,84.603,0.78221092]
[1771023193598,0.79702713,84.649,84.605,0.78221092]
[1771023195599,0.79702713,84.649,84.607,0.78221092]
[1771023197278,0.79702713,84.649,84.611,0.78221092]
[1771023198195,0.79702713,84.649,84.613,0.78221092]
[1771023198983,0.79702713,84.668,84.621,0.78221092]
[1771023199295,0.79702713,84.668,84.623,0.78221092]
[1771023200394,0.79702713,84.673,84.631,0.78221092]
[1771023204415,0.79702713,84.679,84.631,0.78221092]
[1771023205320,0.79702713,84.677,84.632,0.78221092]
[1771023212115,0.79702713,84.677,84.633,11.81572199]
[1771023212321,0.79702713,84.677,84.634,0.77188553]
[1771023212909,0.78884816,84.669,84.634,0.77188553]
[1771023217213,0.78884816,84.669,84.624,61.9]
[1771023217214,0.78884816,84.659,84.625,0.77188553]
[1771023219620,0.74244022,84.657,84.625,0.77188553]
[1771023222023,0.74244022,84.649,84.622,20.93208049]
[1771023222220,0.74244022,84.649,84.623,0.79208049]
[1771023223541,0.74244022,84.649,84.617,0.79208049]
[1771023224235,0.74244022,84.647,84.617,0.79208049]
[1771023227941,3.862496,84.64,84.612,0.79208049]
[1771023228131,0.74244022,84.639,84.602,0.79208049]
[1771023229041,0.74244022,84.639,84.611,0.79208049]
[1771023234839,0.74244022,84.648,84.613,0.79208049]
[1771023237139,0.74244022,84.652,84.615,0.79208049]
[1771023237331,0.74244022,84.652,84.621,0.79208049]
[1771023237531,0.74244022,84.652,84.623,0.79208049]
[1771023240641,0.74244022,84.669,84.625,0.79208049]
[1771023241338,0.74244022,84.669,84.631,0.77064891]
[1771023244141,0.74244022,84.669,84.632,0.77064891]
[1771023245547,11.81078831,84.669,84.632,0.77064891]
[1771023245847,0.73953193,84.659,84.632,0.77064891]
[1771023247642,0.73953193,84.658,84.628,0.77064891]
[1771023247849,0.73953193,84.658,84.623,0.77064891]
[1771023248050,0.73953193,84.649,84.623,0.77064891]
[1771023251741,3.862496,84.66,84.623,0.77064891]
[1771023251742,0.73953193,84.658,84.623,0.77064891]
[1771023254366,0.73953193,84.658,84.625,0.77064891]
[1771023271473,0.74418927,84.669,84.625,0.77064891]
[1771023271680,0.74418927,84.669,84.627,0.76589499]
[1771023273379,0.74418927,84.667,84.629,0.76589499]
[1771023276384,0.74418927,84.667,84.631,0.76589499]
[1771023280484,0.74418927,84.667,84.633,0.74656461]
[1771023280681,3.86343911,84.66,84.633,0.74656461]
[1771023280985,0.77765369,84.659,84.633,0.74656461]
[1771023305402,0.7837112,84.658,84.632,20.94]
[1771023305803,0.7837112,84.649,84.623,21.6]
[1771023306612,11.8136282,84.648,84.623,21.6]
[1771023306912,3.86343911,84.63,84.608,21.6]
[1771023307208,3.86343911,84.63,84.591,11.82158858]
[1771023307209,3.86343911,84.63,84.603,0.78452742]
[1771023308116,11.81628047,84.629,84.601,21.6]
[1771023309212,11.81628047,84.629,84.601,22.38452742]
[1771023309813,3.86343911,84.63,84.602,0.78452742]
[1771023310002,15.67823697,84.64,84.602,0.78452742]
[1771023314415,3.86343911,84.64,84.602,0.78452742]
[1771023316023,3.86343911,84.64,84.604,0.78452742]
[1771023317097,3.86343911,84.65,84.604,0.78452742]
[1771023319214,11.81348864,84.649,84.604,0.78452742]
[1771023319416,11.81348864,84.649,84.603,21.68]
[1771023319417,11.81139563,84.664,84.611,0.78452742]
[1771023319923,3.86343911,84.68,84.631,0.78452742]
[1771023320116,3.86343911,84.68,84.633,0.78452742]
[1771023321724,3.86343911,84.68,84.635,0.78452742]
[1771023322017,3.86343911,84.68,84.636,21.74]
[1771023322222,3.86343911,84.68,84.637,0.78452742]
[1771023322403,3.86343911,84.67,84.637,0.78452742]
[1771023323016,3.86307931,84.67,84.637,0.78452742]
[1771023323215,3.86307931,84.68,84.637,0.78452742]
[1771023323415,3.86307931,84.68,84.639,0.78452742]
[1771023325112,3.86307931,84.68,84.641,0.78452742]
[1771023329840,41.31987485,84.705,84.643,0.78452742]
[1771023330022,3.86307931,84.69,84.645,0.78452742]
[1771023330839,3.86307931,84.69,84.647,0.78452742]
[1771023330840,11.80790893,84.689,84.647,0.78452742]
[1771023331242,3.86307931,84.68,84.647,0.78452742]
[1771023334645,3.86307931,84.67,84.647,0.78452742]
[1771023335019,3.86307931,84.67,84.62,3.86307931]
[1771023335020,3.86307931,84.66,84.631,0.78452742]
[1771023335644,3.86307931,84.67,84.631,0.78452742]
[1771023337239,11.81069813,84.669,84.631,0.78452742]
[1771023344353,0.0203624,84.668,84.631,0.78452742]
[1771023351656,0.02299275,84.639,84.616,0.78452742]
[1771023352852,0.02299275,84.639,84.609,0.78452742]
[1771023354654,0.02405596,84.638,84.609,0.78452742]
[1771023359839,11.81488439,84.639,84.6,0.78452742]
[1771023359840,0.025736,84.629,84.6,0.78452742]
[1771023370048,0.02911459,84.628,84.6,0.78452742]
[1771023376476,11.81628047,84.629,84.6,0.78452742]
[1771023377382,0.03130314,84.629,84.6,0.78452742]
[1771023386878,0.03352557,84.638,84.6,0.78452742]
[1771023387668,0.03376177,84.64,84.602,0.78452742]
[1771023387985,0.03376177,84.646,84.604,0.78452742]
[1771023388395,0.03399224,84.655,84.604,0.78452742]
[1771023390094,0.03399224,84.655,84.609,0.78452742]
[1771023391091,0.03465753,84.659,84.611,0.78452742]
[1771023392093,0.03487675,84.649,84.611,0.78452742]
[1771023392291,0.03487675,84.649,84.612,0.78452742]
[1771023393276,0.03487675,84.649,84.613,0.78452742]
[1771023393477,0.03487675,84.649,84.615,0.78452742]
[1771023404504,3.86645018,84.63,84.599,22.24]
[1771023404704,0.0376867,84.629,84.597,0.78452742]
[1771023406104,0.03786422,84.628,84.597,0.78452742]
[1771023415011,0.03939864,84.619,84.597,0.78452742]
[1771023415413,0.03939864,84.619,84.591,0.78452742]
[1771023416104,11.85707552,84.619,84.591,0.78452742]
[1771023416312,0.03971424,84.618,84.591,0.78452742]
[1771023421626,0.04060824,84.609,84.591,0.78452742]
[1771023421912,0.04060824,84.619,84.591,0.78452742]
[1771023424521,0.0410338,84.618,84.591,0.78452742]
[1771023425923,3.90762914,84.62,84.591,0.78452742]
[1771023426218,11.81767688,84.619,84.591,0.78452742]
[1771023426721,11.85900243,84.619,84.591,0.78452742]
[1771023427920,0.04146189,84.618,84.591,0.78452742]
[1771023442718,0.04340991,84.609,84.585,0.79554021]
[1771023443016,0.04340991,84.609,84.59,0.89554021]
[1771023449239,0.04406291,84.618,84.59,0.89554021]
[1771023463635,0.04406291,84.618,84.59,0.1]
[1771023463841,41.36186908,84.619,84.59,0.0116452]
[1771023463842,0.04570884,84.599,84.59,0.0116452]
[1771023465851,0.04570884,84.599,84.58,0.1]
[1771023467050,11.86617953,84.599,84.58,0.1]
[1771023467234,11.86617953,84.599,84.58,0.88452742]
[1771023467235,0.04595278,84.598,84.58,0.88452742]
[1771023468246,0.04595278,84.598,84.58,0.1]
[1771023472964,0.04595278,84.598,84.581,0.78452742]
[1771023474266,0.04595278,84.598,84.58,0.1]
[1771023474449,3.86813898,84.59,84.578,0.78452742]
[1771023476676,0.04672594,84.589,84.571,0.78452742]
[1771023478051,0.04672594,84.589,84.57,0.1]
[1771023480666,0.04672594,84.589,84.57,0.88452742]
[1771023481864,3.86813898,84.58,84.57,0.88452742]
[1771023482558,3.86813898,84.58,84.544,11.82809371]
[1771023482751,0.78090501,84.579,84.544,11.82809371]
[1771023483065,44.34,84.597,84.542,22.3]
[1771023483066,0.78090501,84.569,84.542,22.3]
[1771023484566,0.78090501,84.569,84.543,0.76180492]
[1771023484963,3.86813898,84.57,84.543,0.76180492]
[1771023490378,11.82466388,84.569,84.543,0.76180492]
[1771023490675,3.86813898,84.57,84.543,0.76180492]
[1771023493879,4.64904399,84.57,84.543,0.76180492]
[1771023494276,0.78090501,84.569,84.543,0.76180492]
[1771023506272,11.82228737,84.586,84.543,0.76180492]
[1771023506493,0.78090501,84.59,84.551,0.76180492]
[1771023506494,3.87194091,84.59,84.551,0.76180492]
[1771023506797,0.78090501,84.591,84.551,0.76180492]
[1771023506970,16.47457425,84.59,84.551,0.76180492]
[1771023507292,3.87194091,84.59,84.551,0.76180492]
[1771023507492,0.78090501,84.594,84.551,0.76180492]
[1771023507682,0.78090501,84.594,84.552,22.68]
[1771023507990,11.82125116,84.594,84.553,0.76180492]
[1771023512594,0.75066872,84.597,84.555,0.77081786]
[1771023512791,12.57155859,84.596,84.555,0.77081786]
[1771023513095,0.75066872,84.595,84.555,0.77081786]
[1771023514682,11.82116935,84.594,84.557,0.77081786]
[1771023515200,11.82010773,84.602,84.561,0.77081786]
[1771023515399,11.82010773,84.602,84.563,0.77081786]
[1771023515888,0.75066872,84.605,84.563,0.77081786]
[1771023516083,4.62260963,84.61,84.563,0.77081786]
[1771023516283,0.75066872,84.609,84.563,0.77081786]
[1771023516700,0.75066872,84.609,84.571,0.77081786]
[1771023517000,0.75066872,84.609,84.57,3.87194091]
[1771023517001,0.75066872,84.609,84.572,22.94]
[1771023517187,3.87194091,84.62,84.573,0.77081786]
[1771023517792,3.87194091,84.63,84.581,0.7773405]
[1771023518000,3.87194091,84.64,84.591,0.7773405]
[1771023518601,0.80919977,84.643,84.591,0.7773405]
[1771023518779,0.80919977,84.643,84.601,0.7773405]
[1771023518980,0.80919977,84.643,84.603,0.7773405]
[1771023520790,0.80919977,84.639,84.603,0.7773405]
[1771023524209,0.80919977,84.637,84.603,0.7773405]
[1771023532017,0.80919977,84.642,84.61,3.87194091]
[1771023532218,0.80919977,84.642,84.611,0.7773405]
[1771023532893,0.80919977,84.653,84.611,0.7773405]
[1771023533092,0.80919977,84.653,84.621,0.7773405]
[1771023533295,0.80919977,84.653,84.623,0.7773405]
[1771023533691,0.80919977,84.657,84.623,0.7773405]
[1771023533904,0.2,84.66,84.641,0.7773405]
[1771023534310,0.80919977,84.677,84.642,0.7773405]
[1771023534504,0.80919977,84.677,84.651,0.7773405]
[1771023534818,0.80919977,84.683,84.651,0.7773405]
[1771023536121,12.81702834,84.69,84.651,0.7773405]
[1771023536310,0.80919977,84.689,84.651,0.7773405]
[1771023538913,0.80919977,84.689,84.652,0.7773405]
[1771023540509,0.80919977,84.689,84.661,0.7773405]
[1771023540900,0.2,84.69,84.661,0.7773405]
[1771023541302,0.2,84.69,84.671,0.78024521]
[1771023541500,0.2,84.69,84.672,0.78024521]
[1771023542625,0.8195578,84.705,84.673,0.78024521]
[1771023543219,0.8195578,84.703,84.673,0.78024521]
[1771023543722,0.8195578,84.699,84.673,0.78024521]
[1771023543916,0.8195578,84.699,84.671,23.08]
[1771023544221,0.8195578,84.689,84.656,23.08]
[1771023544607,0.8195578,84.687,84.656,23.08]
[1771023544804,0.8195578,84.687,84.656,23.86024521]
[1771023546413,0.8195578,84.679,84.656,23.08]
[1771023546616,0.8195578,84.677,84.644,0.78024521]
[1771023547956,0.8195578,84.669,84.642,23.1]
[1771023548130,0.8195578,84.669,84.629,0.78024521]
[1771023548841,0.8195578,84.667,84.629,0.78024521]
[1771023551528,11.81111662,84.666,84.629,0.78024521]
[1771023551744,0.8195578,84.665,84.629,0.78024521]
[1771023553464,0.8195578,84.663,84.629,0.78024521]
[1771023555148,0.8195578,84.661,84.629,0.78024521]
[1771023570478,0.8195578,84.659,84.629,0.78024521]
[1771023575662,0.81940718,84.657,84.627,23.1]
[1771023575881,0.81940718,84.657,84.627,23.85737167]
[1771023576067,0.81940718,84.657,84.628,0.75737167]
[1771023580766,0.79444926,84.678,84.641,0.75688098]
[1771023581088,0.79444926,84.678,84.651,0.75688098]
[1771023581386,0.79444926,84.699,84.661,0.75688098]
[1771023581566,0.79444926,84.699,84.671,0.75688098]
[1771023581769,0.79444926,84.699,84.673,0.75688098]
[1771023585489,0.79444926,84.712,84.673,0.75688098]
[1771023588088,0.2,84.72,84.691,0.75688098]
[1771023588285,0.2,84.72,84.693,0.75688098]
[1771023588989,0.99444926,84.72,84.693,0.75688098]